bitfinex/quotes_SOLUSD_20241024
["timestamp","ask_amount","ask_price","bid_price","bid_amount"]
[1729777862581,45.29024696,175.54,175.49,45.29024696]
[1729777862787,45.29024696,175.53,175.48,16.4749]
[1729777863001,45.29024696,175.54,175.48,61.76514696]
[1729777863203,45.29024696,175.54,175.49,45.29024696]
[1729777863691,0.12549,175.53,175.49,45.29024696]
[1729777863886,0.12549,175.51,175.47,51.48534696]
[1729777864292,45.41573696,175.51,175.46,45.29024696]
[1729777864487,0.12549,175.51,175.47,45.29024696]
[1729777864877,0.12549,175.51,175.46,45.29024696]
[1729777865272,0.12549,175.48,175.44,61.76514696]
[1729777865501,45.41573696,175.48,175.43,45.29024696]
[1729777866595,45.41573696,175.45,175.4,15.4279]
[1729777866901,45.41573696,175.43,175.37,45.29024696]
[1729777867196,0.12549,175.43,175.39,45.29024696]
[1729777867395,45.54122696,175.43,175.37,45.29024696]
[1729777868177,45.41573696,175.4,175.34,51.40814696]
[1729777868380,45.29024696,175.39,175.34,51.40814696]
[1729777868981,45.41573696,175.4,175.34,51.40814696]
[1729777869797,45.29024696,175.42,175.36,22.64512348]
[1729777870008,0.25098,175.43,175.39,45.29024696]
[1729777870199,0.12549,175.42,175.39,45.29024696]
[1729777870620,45.29024696,175.47,175.41,45.29024696]
[1729777870781,45.29024696,175.48,175.43,45.29024696]
[1729777871096,0.12549,175.45,175.4,45.29024696]
[1729777871505,0.12549,175.45,175.41,45.29024696]
[1729777871696,0.12549,175.45,175.42,45.29024696]
[1729777873203,0.12549,175.45,175.41,45.29024696]
[1729777873389,0.12549,175.45,175.42,45.29024696]
[1729777874105,0.12549,175.41,175.36,45.29024696]
[1729777874311,45.41573696,175.41,175.35,45.29024696]
[1729777875190,0.12549,175.41,175.36,45.29024696]
[1729777875385,0.12549,175.39,175.35,45.29024696]
[1729777875689,0.12549,175.39,175.34,45.29024696]
[1729777876001,45.41573696,175.39,175.34,45.29024696]
[1729777876419,0.12549,175.41,175.37,45.29024696]
[1729777876601,0.25098,175.43,175.39,45.29024696]
[1729777877021,24.153354,175.44,175.39,45.29024696]
[1729777877201,45.29024696,175.41,175.35,45.29024696]
[1729777878016,45.29024696,175.41,175.36,45.29024696]
[1729777878613,45.29024696,175.39,175.34,45.29024696]
[1729777879005,45.29024696,175.39,175.33,45.29024696]
[1729777879195,45.41573696,175.37,175.32,45.29024696]
[1729777879403,45.29024696,175.33,175.27,45.29024696]
[1729777879700,22.64512348,175.34,175.29,45.29024696]
[1729777879898,0.12549,175.34,175.29,45.29024696]
[1729777880099,45.41573696,175.34,175.29,45.29024696]
[1729777880526,0.12549,175.34,175.29,45.29024696]
[1729777881399,0.12549,175.34,175.3,45.29024696]
[1729777881712,0.12549,175.35,175.31,45.29024696]
[1729777881915,45.29024696,175.34,175.29,45.29024696]
[1729777882107,45.41573696,175.31,175.26,68.30554696]
[1729777882307,45.41573696,175.31,175.26,16.4796]
[1729777882709,0.12549,175.29,175.26,16.4796]
[1729777882915,45.29024696,175.28,175.23,45.29024696]
[1729777883121,45.29024696,175.28,175.22,51.60264696]
[1729777884229,45.29024696,175.28,175.23,45.29024696]
[1729777884519,0.25098,175.23,175.14,21.6153]
[1729777884722,45.29024696,175.22,175.16,45.29024696]
[1729777885305,45.29024696,175.28,175.21,45.29024696]
[1729777885507,45.29024696,175.28,175.14,21.7153]
[1729777885508,0.25098,175.27,175.23,45.29024696]
[1729777885725,0.12549,175.26,175.22,45.29024696]
[1729777885907,45.29024696,175.31,175.25,45.29024696]
[1729777886227,45.41573696,175.31,175.26,45.29024696]
[1729777886430,0.12549,175.3,175.25,45.29024696]
[1729777886727,45.29024696,175.3,175.24,45.29024696]
[1729777886904,45.29024696,175.26,175.15,43.902374]
[1729777887107,45.29024696,175.23,175.18,45.29024696]
[1729777887306,45.29024696,175.23,175.17,45.29024696]
[1729777887737,45.41573696,175.24,175.19,45.29024696]
[1729777888034,0.25098,175.24,175.2,45.29024696]
[1729777888206,45.29024696,175.27,175.21,45.29024696]
[1729777888410,0.25098,175.27,175.22,45.29024696]
[1729777888628,0.12549,175.26,175.21,45.29024696]
[1729777888817,45.41573696,175.26,175.21,45.29024696]
[1729777889026,45.41573696,175.23,175.17,45.29024696]
[1729777889328,45.41573696,175.23,175.18,45.29024696]
[1729777889528,0.12549,175.23,175.18,45.29024696]
[1729777889710,0.25098,175.23,175.18,45.29024696]
[1729777889913,45.54122696,175.23,175.18,45.29024696]
[1729777890111,45.54122696,175.23,175.17,45.29024696]
[1729777890925,45.54122696,175.23,175.18,45.29024696]
[1729777891107,0.25098,175.23,175.19,45.29024696]
[1729777891303,0.12549,175.21,175.17,45.29024696]
[1729777891730,0.12549,175.21,175.16,45.29024696]
[1729777891928,0.12549,175.21,175.17,45.29024696]
[1729777892114,24.027864,175.24,175.19,45.29024696]
[1729777892320,0.25098,175.24,175.19,45.29024696]
[1729777892629,45.29024696,175.27,175.21,45.29024696]
[1729777892813,0.12549,175.25,175.2,45.29024696]
[1729777893220,0.12549,175.25,175.22,45.29024696]
[1729777894107,0.1,175.33,175.24,45.29024696]
[1729777894108,45.29024696,175.33,175.24,45.29024696]
[1729777894312,20.814,175.35,175.29,45.29024696]
[1729777894313,45.29024696,175.35,175.29,45.29024696]
[1729777894908,45.29024696,175.37,175.32,45.29024696]
[1729777895214,45.29024696,175.38,175.32,45.29024696]
[1729777895917,45.29024696,175.42,175.36,45.29024696]
[1729777896120,0.12549,175.39,175.34,45.29024696]
[1729777896310,0.12549,175.39,175.35,45.29024696]
[1729777896925,45.29024696,175.41,175.36,45.29024696]
[1729777897106,6.4589,175.48,175.3,45.29024696]
[1729777897107,45.29024696,175.42,175.37,45.29024696]
[1729777897310,0.12549,175.41,175.37,45.29024696]
[1729777897512,0.12549,175.4,175.36,45.29024696]
[1729777897723,45.41573696,175.4,175.34,45.29024696]
[1729777897924,45.41573696,175.4,175.35,45.29024696]
[1729777898125,45.29024696,175.41,175.35,45.29024696]
[1729777898327,45.29024696,175.41,175.3,45.29024696]
[1729777898328,0.12549,175.38,175.33,45.29024696]
[1729777898529,0.37647,175.38,175.33,45.29024696]
[1729777899233,69.44360096,175.38,175.32,45.29024696]
[1729777899538,0.12549,175.37,175.34,45.29024696]
[1729777900247,45.41573696,175.37,175.32,45.29024696]
[1729777900412,0.12549,175.37,175.32,45.29024696]
[1729777900612,45.29024696,175.33,175.23,15.0786]
[1729777900831,45.41573696,175.3,175.25,45.29024696]
[1729777901037,45.41573696,175.3,175.24,45.29024696]
[1729777901626,0.37647,175.3,175.25,45.29024696]
[1729777901935,45.29024696,175.36,175.29,45.29024696]
[1729777902132,0.25098,175.35,175.3,45.29024696]
[1729777902435,24.027864,175.37,175.33,45.29024696]
[1729777902627,0.12549,175.37,175.32,45.29024696]
[1729777902826,0.12549,175.36,175.32,45.29024696]
[1729777903014,45.29024696,175.35,175.3,45.29024696]
[1729777903526,0.12549,175.34,175.3,45.29024696]
[1729777904439,0.12549,175.34,175.31,45.29024696]
[1729777904621,45.29024696,175.38,175.33,45.29024696]
[1729777904823,45.29024696,175.4,175.35,45.29024696]
[1729777905144,5.7006,175.42,175.32,45.29024696]
[1729777905145,45.29024696,175.38,175.32,45.29024696]
[1729777905616,45.29024696,175.39,175.33,45.29024696]
[1729777905912,45.29024696,175.39,175.24,0.1]
[1729777905913,45.29024696,175.38,175.32,45.29024696]
[1729777906117,0.12549,175.34,175.3,45.29024696]
[1729777906340,0.25098,175.37,175.33,45.29024696]
[1729777906528,0.25098,175.38,175.33,45.29024696]
[1729777906718,0.12549,175.37,175.33,45.29024696]
[1729777906920,0.12549,175.37,175.32,45.29024696]
[1729777907116,0.12549,175.37,175.35,22.64512348]
[1729777907435,45.29024696,175.4,175.35,45.29024696]
[1729777907436,23.902374,175.4,175.35,45.29024696]
[1729777907744,0.12549,175.39,175.35,45.29024696]
[1729777908327,23.902374,175.42,175.37,45.29024696]
[1729777908841,0.12549,175.41,175.37,45.29024696]
[1729777909845,45.54122696,175.41,175.35,45.29024696]
[1729777910338,45.54122696,175.41,175.26,0.1]
[1729777910339,0.12549,175.35,175.29,45.29024696]
[1729777910542,45.29024696,175.34,175.29,45.29024696]
[1729777911045,45.41573696,175.35,175.29,45.29024696]
[1729777911437,45.29024696,175.32,175.28,22.2182]
[1729777911637,45.29024696,175.32,175.28,16.1059]
[1729777912438,45.29024696,175.3,175.24,60.29364696]
[1729777912846,45.29024696,175.29,175.24,60.29364696]
[1729777914044,45.29024696,175.3,175.24,60.29364696]
[1729777914252,45.29024696,175.29,175.24,15.0034]
[1729777914934,0.12549,175.28,175.24,15.0034]
[1729777915139,0.12549,175.28,175.24,20.0]
[1729777915140,45.29024696,175.27,175.24,20.0]
[1729777915640,45.29024696,175.27,175.23,20.0]
[1729777915828,45.29024696,175.27,175.21,45.29024696]
[1729777916028,45.29024696,175.25,175.2,16.0439]
[1729777916355,45.29024696,175.24,175.2,16.0439]
[1729777916752,45.29024696,175.24,175.18,45.29024696]
[1729777917251,0.12549,175.24,175.19,45.29024696]
[1729777917625,0.12549,175.24,175.18,45.29024696]
[1729777917626,45.41573696,175.24,175.18,45.29024696]
[1729777918244,45.29024696,175.23,175.17,45.29024696]
[1729777918452,45.29024696,175.23,175.18,20.0]
[1729777918953,0.12549,175.24,175.18,20.0]
[1729777918954,45.29024696,175.24,175.18,65.29024696]
[1729777919167,0.25098,175.28,175.23,45.29024696]
[1729777919328,45.29024696,175.32,175.26,45.29024696]
[1729777919627,45.29024696,175.29,175.23,45.29024696]
[1729777920550,45.41573696,175.28,175.22,45.29024696]
[1729777920729,0.12549,175.26,175.21,45.29024696]
[1729777921636,0.12549,175.26,175.19,45.29024696]
[1729777921637,45.29024696,175.25,175.19,45.29024696]
[1729777921843,45.41573696,175.26,175.2,65.29024696]
[1729777922655,45.41573696,175.26,175.2,45.29024696]
[1729777923650,0.12549,175.21,175.16,65.29024696]
[1729777923861,45.29024696,175.2,175.15,67.87424696]
[1729777924165,45.41573696,175.19,175.13,45.29024696]
[1729777925335,45.29024696,175.18,175.12,45.29024696]
[1729777925531,45.29024696,175.18,175.13,20.0]
[1729777925738,45.29024696,175.14,175.11,0.6167704]
[1729777925953,45.29024696,175.16,175.11,0.6167704]
[1729777926156,0.12549,175.15,175.11,0.6167704]
[1729777926535,45.29024696,175.19,175.13,45.29024696]
[1729777926746,0.25098,175.18,175.13,45.29024696]
[1729777927031,0.12549,175.17,175.13,45.29024696]
[1729777927445,0.12549,175.14,175.11,0.6167704]
[1729777927641,0.12549,175.13,175.11,0.6167704]
[1729777928266,45.66671696,175.14,175.11,0.6167704]
[1729777928839,0.12549,175.12,175.11,0.6167704]
[1729777929042,45.66671696,175.12,175.11,0.6167704]
[1729777930441,45.29024696,175.17,175.11,45.90701736]
[1729777930640,45.29024696,175.18,175.12,45.29024696]
[1729777930863,45.29024696,175.19,175.13,45.29024696]
[1729777931068,45.29024696,175.2,175.14,45.29024696]
[1729777931552,0.12549,175.19,175.14,45.29024696]
[1729777932165,45.29024696,175.19,175.13,45.29024696]
[1729777932369,0.12549,175.18,175.13,45.29024696]
[1729777933446,45.66671696,175.18,175.11,6.6902704]
[1729777933650,45.29024696,175.17,175.11,51.98051736]
[1729777933965,22.64512348,175.17,175.12,45.29024696]
[1729777934158,45.66671696,175.18,175.12,45.29024696]
[1729777934546,22.64512348,175.16,175.11,6.6902704]
[1729777934750,45.29024696,175.14,175.11,0.6167704]
[1729777935052,45.29024696,175.12,175.11,0.6167704]
[1729777936464,0.12549,175.14,175.11,0.6167704]
[1729777936666,45.29024696,175.16,175.11,0.6167704]
[1729777937955,0.25098,175.15,175.11,0.6167704]
[1729777938158,69.44360096,175.12,175.11,0.6167704]
[1729777938768,89.44360096,175.12,175.11,0.6167704]
[1729777940144,95.15390096,175.12,175.11,0.6167704]
[1729777940466,0.37647,175.1,174.99,16.29149468]
[1729777940660,45.29024696,175.06,175.0,45.29024696]
[1729777940976,45.29024696,175.06,174.99,16.29149468]
[1729777940977,0.12549,175.07,175.02,45.29024696]
[1729777941272,6.296,175.19,175.02,6.4735]
[1729777941445,5.7084,175.18,175.03,15.9756]
[1729777941648,5.7084,175.18,175.04,20.0]
[1729777941882,15.1583,175.2,175.06,20.0]
[1729777942077,6.5018,175.23,175.06,20.0]
[1729777942078,5.7077,175.21,175.06,20.0]
[1729777942257,45.29024696,175.15,175.1,45.29024696]
[1729777942452,45.29024696,175.13,175.07,45.29024696]
[1729777942651,45.29024696,175.14,175.08,45.29024696]
[1729777942869,45.29024696,175.16,175.1,45.29024696]
[1729777943062,5.7077,175.21,175.06,20.0]
[1729777943063,0.12549,175.15,175.11,45.29024696]
[1729777943376,45.29024696,175.19,175.13,45.29024696]
[1729777943752,45.29024696,175.16,175.12,15.402]
[1729777944362,74.03644922,175.14,175.08,74.03644922]
[1729777944562,74.03644922,175.14,175.09,20.0]
[1729777944764,74.03644922,175.13,175.07,89.76054922]
[1729777945357,74.03644922,175.14,175.09,74.03644922]
[1729777945753,74.16193922,175.15,175.09,74.03644922]
[1729777945969,0.25098,175.14,175.09,74.03644922]
[1729777946348,0.25098,175.14,175.1,74.03644922]
[1729777946551,74.03644922,175.19,175.13,74.03644922]
[1729777946766,0.12549,175.18,175.13,74.03644922]
[1729777946969,74.03644922,175.17,175.12,74.03644922]
[1729777947167,0.12549,175.17,175.12,74.03644922]
[1729777947884,0.37647,175.17,175.12,74.03644922]
[1729777948760,0.37647,175.17,175.11,74.03644922]
[1729777949185,0.37647,175.17,175.12,74.03644922]
[1729777949480,6.3018,175.23,175.16,74.03644922]
[1729777949481,74.03644922,175.21,175.16,74.03644922]
[1729777949680,0.12549,175.2,175.16,74.03644922]
[1729777949883,0.12549,175.2,175.15,74.03644922]
[1729777950079,74.03644922,175.22,175.16,74.03644922]
[1729777950383,74.03644922,175.25,175.19,74.03644922]
[1729777950572,74.03644922,175.27,175.22,74.03644922]
[1729777950764,74.03644922,175.26,175.2,74.03644922]
[1729777951083,74.03644922,175.21,175.17,16.3399]
[1729777951274,0.12549,175.26,175.17,16.3399]
[1729777951788,20.12549,175.26,175.17,16.3399]
[1729777952000,0.12549,175.2,175.17,16.3399]
[1729777952309,74.03644922,175.19,175.13,74.03644922]
[1729777952479,74.03644922,175.17,175.12,89.81474922]
[1729777952986,74.41291922,175.18,175.13,74.03644922]
[1729777953378,74.03644922,175.17,175.12,15.7783]
[1729777953580,0.37647,175.18,175.12,15.7783]
[1729777953581,74.03644922,175.16,175.12,15.7783]
[1729777953786,74.03644922,175.17,175.12,89.81474922]
[1729777954276,74.03644922,175.17,175.12,15.7783]
[1729777954791,74.03644922,175.15,175.09,74.03644922]
[1729777955134,74.03644922,175.14,175.08,89.77784922]
[1729777955687,0.25098,175.18,175.13,74.03644922]
[1729777955877,0.25098,175.19,175.15,74.03644922]
[1729777956085,74.03644922,175.22,175.16,74.03644922]
[1729777956321,16.403,175.28,175.11,43.902374]
[1729777956593,5.7055,175.27,175.11,43.776884]
[1729777956803,16.403,175.28,175.11,43.776884]
[1729777956804,37.01822461,175.22,175.16,37.01822461]
[1729777957301,37.01822461,175.27,175.21,37.01822461]
[1729777957505,37.01822461,175.27,175.17,16.2151]
[1729777957506,74.03644922,175.27,175.22,74.03644922]
[1729777957885,74.16193922,175.25,175.19,74.03644922]
[1729777958493,0.12549,175.23,175.18,74.03644922]
[1729777958799,74.03644922,175.23,175.17,90.25154922]
[1729777958995,0.25098,175.23,175.18,74.03644922]
[1729777959978,43.776884,175.29,175.17,16.2151]
[1729777959979,0.12549,175.27,175.22,74.03644922]
[1729777960205,74.03644922,175.32,175.26,74.03644922]
[1729777960408,0.12549,175.29,175.24,74.03644922]
[1729777960704,37.01822461,175.28,175.22,74.03644922]
[1729777960892,37.14371461,175.29,175.23,37.01822461]
[1729777961092,74.16193922,175.29,175.23,74.03644922]
[1729777961295,74.03644922,175.28,175.22,74.03644922]
[1729777961493,74.03644922,175.27,175.21,74.03644922]
[1729777961689,74.03644922,175.26,175.2,74.03644922]
[1729777961894,74.03644922,175.25,175.2,74.03644922]
[1729777962203,74.03644922,175.22,175.17,16.2151]
[1729777962494,74.03644922,175.22,174.99,94.30111229]
[1729777962495,74.03644922,175.19,175.14,74.03644922]
[1729777962875,74.03644922,175.2,175.14,74.03644922]
[1729777963077,74.03644922,175.2,175.15,74.03644922]
[1729777963296,74.03644922,175.21,175.15,74.03644922]
[1729777963485,0.37647,175.22,175.17,74.03644922]
[1729777964399,45.51519734,175.25,175.2,45.51519734]
[1729777964581,0.25098,175.25,175.21,45.51519734]
[1729777965203,0.25098,175.25,175.2,45.51519734]
[1729777965410,45.51519734,175.3,175.24,45.51519734]
[1729777965609,45.51519734,175.32,175.26,45.51519734]
[1729777965789,45.51519734,175.33,175.27,45.51519734]
[1729777965993,0.12549,175.32,175.28,45.51519734]
[1729777966509,45.51519734,175.34,175.28,45.51519734]
[1729777966811,0.25098,175.33,175.29,45.51519734]
[1729777967012,0.37647,175.33,175.28,45.51519734]
[1729777967184,45.51519734,175.32,175.26,45.51519734]
[1729777967387,0.37647,175.33,175.28,45.51519734]
[1729777967690,45.51519734,175.35,175.29,45.51519734]
[1729777967902,45.51519734,175.37,175.31,45.51519734]
[1729777968202,45.51519734,175.38,175.32,45.51519734]
[1729777968394,0.12549,175.37,175.32,73.85452956]
[1729777968985,73.85452956,175.39,175.33,73.85452956]
[1729777969611,0.1,175.45,175.35,73.85452956]
[1729777969612,73.85452956,175.4,175.35,73.85452956]
[1729777969789,73.98001956,175.39,175.33,73.85452956]
[1729777970309,73.85452956,175.42,175.31,6.5315]
[1729777970601,73.85452956,175.43,175.37,73.85452956]
[1729777970806,73.85452956,175.42,175.37,73.85452956]
[1729777971011,0.12549,175.41,175.37,73.85452956]
[1729777971386,73.85452956,175.43,175.37,73.85452956]
[1729777971703,73.85452956,175.44,175.38,73.85452956]
[1729777971897,73.85452956,175.43,175.38,73.85452956]
[1729777972097,73.98001956,175.42,175.37,73.85452956]
[1729777972309,73.98001956,175.42,175.36,73.85452956]
[1729777972713,73.98001956,175.42,175.37,73.85452956]
[1729777974416,0.37647,175.42,175.37,73.85452956]
[1729777975209,0.37647,175.42,175.38,73.85452956]
[1729777976388,73.85452956,175.4,175.34,73.85452956]
[1729777976790,73.85452956,175.4,175.35,73.85452956]
[1729777977212,73.85452956,175.38,175.33,89.94902956]
[1729777977900,73.85452956,175.39,175.33,89.94902956]
[1729777978391,73.85452956,175.39,175.34,73.85452956]
[1729777978591,73.98001956,175.4,175.35,73.85452956]
[1729777978809,73.98001956,175.4,175.34,73.85452956]
[1729777979015,73.85452956,175.4,175.34,73.85452956]
[1729777980207,73.98001956,175.41,175.36,73.85452956]
[1729777980513,73.98001956,175.41,175.35,73.85452956]
[1729777980818,0.12549,175.41,175.36,73.85452956]
[1729777981010,73.85452956,175.44,175.39,73.85452956]
[1729777981199,73.85452956,175.46,175.41,73.85452956]
[1729777981519,0.12549,175.41,175.35,73.85452956]
[1729777981716,73.85452956,175.39,175.34,56.92726478]
[1729777982019,73.85452956,175.4,175.35,73.85452956]
[1729777982213,73.85452956,175.39,175.33,89.94902956]
[1729777982395,73.85452956,175.38,175.33,89.94902956]
[1729777982890,73.85452956,175.39,175.33,89.94902956]
[1729777983093,73.85452956,175.39,175.34,73.85452956]
[1729777983310,73.85452956,175.4,175.34,73.85452956]
[1729777983621,73.98001956,175.41,175.35,73.85452956]
[1729777983803,0.37647,175.41,175.37,73.85452956]
[1729777984116,73.85452956,175.46,175.4,73.85452956]
[1729777984317,0.12549,175.45,175.41,73.85452956]
[1729777984621,0.12549,175.45,175.4,73.85452956]
[1729777985096,73.85452956,175.47,175.42,36.92726478]
[1729777985302,73.85452956,175.46,175.41,73.85452956]
[1729777985503,73.85452956,175.42,175.36,36.92726478]
[1729777985821,73.85452956,175.41,175.36,36.92726478]
[1729777986002,36.92726478,175.4,175.33,16.0945]
[1729777986316,0.12549,175.41,175.31,6.5315]
[1729777986722,44.153354,175.44,175.31,6.5315]
[1729777987096,73.85452956,175.35,175.3,16.6532]
[1729777987307,73.85452956,175.33,175.27,80.48142956]
[1729777987513,73.85452956,175.35,175.29,73.85452956]
[1729777987703,73.85452956,175.35,175.3,73.85452956]
[1729777988399,45.46039632,175.35,175.3,45.46039632]
[1729777988599,45.46039632,175.36,175.31,45.46039632]
[1729777989007,45.46039632,175.36,175.3,45.46039632]
[1729777989204,45.46039632,175.35,175.3,45.46039632]
[1729777989408,45.46039632,175.36,175.31,45.46039632]
[1729777989720,45.46039632,175.38,175.32,45.46039632]
[1729777989911,0.12549,175.39,175.27,6.6269]
[1729777989912,45.46039632,175.35,175.29,45.46039632]
[1729777990117,45.46039632,175.36,175.31,45.46039632]
[1729777990416,0.37647,175.38,175.34,45.46039632]
[1729777990621,20.0,175.44,175.3,20.0]
[1729777990793,5.6994,175.46,175.37,45.46039632]
[1729777991001,45.46039632,175.43,175.38,45.46039632]
[1729777991217,0.12549,175.42,175.38,45.46039632]
[1729777991408,0.12549,175.42,175.37,45.46039632]
[1729777992303,45.46039632,175.43,175.38,45.46039632]
[1729777992505,45.46039632,175.46,175.41,45.46039632]
[1729777992706,45.46039632,175.46,175.4,45.46039632]
[1729777992921,45.46039632,175.46,175.39,45.46039632]
[1729777992922,45.46039632,175.44,175.39,45.46039632]
[1729777993115,45.46039632,175.43,175.38,20.0]
[1729777993316,45.46039632,175.44,175.38,65.46039632]
[1729777993516,0.12549,175.46,175.38,65.46039632]
[1729777993517,45.46039632,175.45,175.39,45.46039632]
[1729777993719,45.46039632,175.49,175.43,45.46039632]
[1729777994017,11.8968,175.52,175.38,20.0]
[1729777994018,45.46039632,175.47,175.41,45.46039632]
[1729777994224,45.46039632,175.47,175.42,45.46039632]
[1729777994533,45.46039632,175.47,175.41,45.46039632]
[1729777994730,45.46039632,175.47,175.38,20.0]
[1729777994731,45.46039632,175.49,175.44,45.46039632]
[1729777994904,45.46039632,175.5,175.44,45.46039632]
[1729777995312,45.46039632,175.51,175.46,45.46039632]
[1729777995529,22.73019816,175.53,175.47,45.46039632]
[1729777995822,45.46039632,175.52,175.47,45.46039632]
[1729777995997,45.46039632,175.5,175.45,60.97599632]
[1729777996412,45.46039632,175.52,175.46,45.46039632]
[1729777996613,0.12549,175.51,175.47,45.46039632]
[1729777996819,45.46039632,175.53,175.48,45.46039632]
[1729777997531,45.46039632,175.54,175.48,45.46039632]
[1729777997713,45.58588632,175.53,175.48,45.46039632]
[1729777997909,45.46039632,175.54,175.49,45.46039632]
[1729777998718,0.6167704,175.55,175.5,45.46039632]
[1729777999234,46.07716672,175.55,175.5,45.46039632]
[1729777999834,0.6167704,175.55,175.5,45.46039632]
[1729778000922,0.6167704,175.55,175.51,22.73019816]
[1729778001242,0.6167704,175.55,175.51,45.46039632]
[1729778001414,46.07716672,175.55,175.5,45.46039632]
[1729778001732,45.46039632,175.51,175.46,20.0]
[1729778001934,45.46039632,175.51,175.42,6.0855]
[1729778001935,45.46039632,175.48,175.42,28.81569816]
[1729778002110,45.46039632,175.48,175.43,45.46039632]
[1729778002519,45.46039632,175.48,175.42,51.54589632]
[1729778003025,45.46039632,175.48,175.43,45.46039632]
[1729778003819,45.46039632,175.52,175.46,65.46039632]
[1729778004027,46.07716672,175.55,175.5,45.46039632]
[1729778004216,0.6167704,175.55,175.5,45.46039632]
[1729778004416,45.46039632,175.54,175.49,45.46039632]
[1729778004645,46.07716672,175.55,175.5,45.46039632]
[1729778004937,0.6167704,175.55,175.52,45.46039632]
[1729778005122,0.6167704,175.55,175.53,45.46039632]
[1729778005439,0.6167704,175.55,175.5,45.46039632]
[1729778005739,0.6167704,175.55,175.46,20.0]
[1729778005740,0.6167704,175.55,175.51,45.46039632]
[1729778006133,0.6167704,175.55,175.52,45.46039632]
[1729778006540,0.6167704,175.55,175.53,45.46039632]
[1729778007133,0.6167704,175.55,175.52,45.46039632]
[1729778007537,0.6167704,175.55,175.54,65.46039632]
[1729778008039,0.6167704,175.55,175.52,51.60309632]
[1729778008241,0.6167704,175.55,175.53,65.46039632]
[1729778009342,0.6167704,175.55,175.51,45.46039632]
[1729778009635,0.6167704,175.55,175.51,20.0]
[1729778009820,0.6167704,175.55,175.51,65.46039632]
[1729778010015,0.6167704,175.55,175.52,45.46039632]
[1729778010228,0.6167704,175.55,175.54,45.46039632]
[1729778011441,0.6167704,175.55,175.53,45.46039632]
[1729778011636,0.6167704,175.55,175.52,45.46039632]
[1729778012637,0.6167704,175.55,175.54,45.46039632]
[1729778012840,0.6167704,175.55,175.54,65.46039632]
[1729778013927,0.6167704,175.55,175.54,80.80529632]
[1729778014132,0.6167704,175.55,175.54,104.58218032]
[1729778014331,45.46039632,175.68,175.55,43.776884]
[1729778014536,45.58588632,175.67,175.62,45.46039632]
[1729778015040,45.58588632,175.67,175.61,45.46039632]
[1729778015249,22.73019816,175.69,175.64,45.46039632]
[1729778015422,45.46039632,175.69,175.64,45.46039632]
[1729778015621,45.46039632,175.68,175.63,45.46039632]
[1729778015922,21.5834,175.71,175.56,6.3284]
[1729778015923,45.46039632,175.7,175.64,45.46039632]
[1729778016128,0.12549,175.69,175.64,45.46039632]
[1729778016445,45.58588632,175.65,175.59,45.46039632]
[1729778016643,45.58588632,175.65,175.6,45.46039632]
[1729778017026,45.46039632,175.63,175.58,45.46039632]
[1729778017226,45.46039632,175.63,175.57,45.46039632]
[1729778017547,45.46039632,175.62,175.56,51.78879632]
[1729778017728,45.46039632,175.63,175.57,45.46039632]
[1729778017939,45.46039632,175.63,175.58,45.46039632]
[1729778018242,45.46039632,175.63,175.57,45.46039632]
[1729778018422,45.46039632,175.62,175.57,45.46039632]
[1729778018823,45.46039632,175.62,175.56,51.78879632]
[1729778019245,45.46039632,175.63,175.57,45.46039632]
[1729778021040,45.46039632,175.61,175.57,20.0]
[1729778023151,45.46039632,175.59,175.54,60.80529632]
[1729778023447,22.73019816,175.56,175.51,45.46039632]
[1729778023623,45.46039632,175.56,175.5,60.46889632]
[1729778023825,45.46039632,175.55,175.5,15.0085]
[1729778024446,45.46039632,175.56,175.5,60.46889632]
[1729778025127,45.46039632,175.56,175.51,20.0]
[1729778025836,45.46039632,175.57,175.52,45.46039632]
[1729778026032,45.46039632,175.56,175.51,65.46039632]
[1729778028155,45.46039632,175.56,175.51,20.0]
[1729778028344,45.46039632,175.54,175.48,51.69609632]
[1729778028539,45.46039632,175.52,175.46,60.58299632]
[1729778029142,45.46039632,175.54,175.48,45.46039632]
[1729778031658,45.46039632,175.53,175.48,20.0]
[1729778032260,45.46039632,175.53,175.46,60.58299632]
[1729778032261,45.46039632,175.53,175.47,20.0]
[1729778033143,45.46039632,175.51,175.47,20.0]
[1729778033345,45.46039632,175.51,175.46,15.1226]
[1729778033567,0.12549,175.55,175.44,6.2682]
[1729778033568,45.46039632,175.49,175.44,6.2682]
[1729778033735,45.46039632,175.48,175.41,61.66929632]
[1729778033942,45.46039632,175.49,175.43,45.46039632]
[1729778034362,45.46039632,175.54,175.48,45.46039632]
[1729778034957,0.12549,175.53,175.48,45.46039632]
[1729778035153,45.46039632,175.53,175.47,45.46039632]
[1729778035671,45.46039632,175.54,175.48,45.46039632]
[1729778036844,45.46039632,175.53,175.47,45.46039632]
[1729778037866,45.46039632,175.52,175.46,45.46039632]